bitfinex-derivatives/quotes_ETHF0:USTF0_20251001
["timestamp","ask_amount","ask_price","bid_price","bid_amount"]
[1759295406897,0.6836,4152.9,4152.8,0.7497]
[1759295407190,0.4406,4152.9,4152.8,0.7497]
[1759295407387,3.2078,4153.1,4153.0,0.1342]
[1759295407695,3.6662,4153.1,4153.0,0.8839]
[1759295410990,3.8914,4153.1,4153.0,0.8839]
[1759295411694,4.2118,4153.1,4153.0,0.8839]
[1759295412888,3.2078,4153.1,4153.0,0.8839]
[1759295413094,3.4508,4153.1,4153.0,0.8839]
[1759295413297,3.6662,4153.1,4153.0,0.8839]
[1759295413506,0.4584,4153.1,4153.0,0.8839]
[1759295416209,1.004,4153.1,4153.0,0.8839]
[1759295416409,4.2118,4153.1,4153.0,0.5393]
[1759295416699,0.761,4152.8,4152.7,0.3197]
[1759295416910,1.004,4152.8,4152.7,0.3197]
[1759295417297,1.004,4152.8,4152.7,0.5393]
[1759295417498,1.004,4152.8,4152.7,0.7497]
[1759295417891,1.43734,4152.8,4152.7,1.18305]
[1759295418100,1.43734,4152.8,4152.7,0.5393]
[1759295418300,1.43734,4152.8,4152.7,0.3197]
[1759295418599,1.19434,4152.8,4152.7,0.3197]
[1759295418802,1.43734,4152.8,4152.7,0.3197]
[1759295419001,0.43337,4152.6,4152.5,0.43338]
[1759295419204,0.5456,4152.2,4152.1,0.75312]
[1759295419407,0.761,4152.2,4152.1,0.97272]
[1759295420002,0.761,4152.2,4152.1,1.18312]
[1759295420201,0.2154,4152.2,4152.1,1.18312]
[1759295420503,0.243,4152.3,4152.2,0.7658]
[1759295420700,0.243,4152.3,4152.2,0.88191]
[1759295420898,0.243,4152.3,4152.2,1.19921]
[1759295421300,0.4707,4152.3,4152.2,1.19921]
[1759295422206,0.6898,4152.3,4152.2,1.19921]
[1759295422704,1.0087,4152.3,4152.2,1.19921]
[1759295423102,0.6898,4152.3,4152.2,1.19921]
[1759295423500,3.749,4152.6,4152.5,1.01998]
[1759295423805,4.215,4152.6,4152.5,1.33038]
[1759295424006,4.64836,4152.6,4152.5,1.33038]
[1759295425002,4.215,4152.6,4152.5,1.33038]
[1759295425807,4.64836,4152.6,4152.5,0.897]
[1759295426007,4.64836,4152.6,4152.5,1.33037]
[1759295426504,1.44056,4152.6,4152.5,1.19857]
[1759295426713,1.0072,4152.6,4152.5,1.19857]
[1759295429404,0.2223,4152.6,4152.5,1.33037]
[1759295429611,3.2078,4152.7,4152.6,1.19856]
[1759295430111,3.4508,4152.7,4152.6,1.19856]
[1759295430304,3.6731,4152.7,4152.6,1.19856]
[1759295431506,3.2078,4152.7,4152.6,1.19856]
[1759295431701,3.4508,4152.7,4152.6,1.19856]
[1759295431899,3.6731,4152.7,4152.6,1.19856]
[1759295433417,3.4301,4152.7,4152.6,1.19856]
[1759295433607,3.6731,4152.7,4152.6,1.19856]
[1759295435310,4.2379,4152.7,4152.6,1.19856]
[1759295436709,3.8961,4152.7,4152.6,1.19856]
[1759295439017,3.6531,4152.7,4152.6,1.19856]
[1759295439210,3.8961,4152.7,4152.6,1.19856]
[1759295440214,3.8961,4152.7,4152.6,2.20089903]
[1759295440520,3.2078,4152.7,4152.6,2.20089903]
[1759295440815,0.3418,4153.2,4153.1,0.43331]
[1759295441118,1.0301,4153.2,4153.1,0.96921]
[1759295442811,0.7871,4153.2,4153.1,0.96921]
[1759295443019,1.0301,4153.2,4153.1,0.96921]
[1759295443217,0.7871,4153.2,4153.1,0.96921]
[1759295443418,1.0301,4153.2,4153.1,0.96921]
[1759295444916,0.7871,4153.2,4153.1,0.96921]
[1759295445215,1.0301,4153.2,4153.1,0.96921]
[1759295446020,0.7871,4153.2,4153.1,0.96921]
[1759295446220,1.0301,4153.2,4153.1,0.96921]
[1759295446931,0.7871,4153.2,4153.1,0.96921]
[1759295447121,1.0301,4153.2,4153.1,0.96921]
[1759295447516,1.0301,4153.2,4153.1,1.19851]
[1759295448019,1.0301,4153.2,4153.1,0.74371]
[1759295448020,1.4634,4153.2,4153.1,0.74371]
[1759295448218,1.4634,4153.2,4153.1,0.43331]
[1759295448421,1.0301,4153.2,4153.1,0.74371]
[1759295448614,1.0301,4153.2,4153.1,0.43331]
[1759295449010,1.0301,4153.2,4153.1,0.74371]
[1759295450122,1.4634,4153.2,4153.1,0.74371]
[1759295450318,1.2204,4153.2,4153.1,0.74371]
[1759295450521,1.0301,4153.2,4153.1,0.96921]
[1759295452223,1.4634,4153.2,4153.1,0.96921]
[1759295452522,1.0301,4153.2,4153.1,1.19851]
[1759295452716,3.2078,4153.4,4153.3,0.43329]
[1759295452924,3.6731,4153.4,4153.3,1.19849]
[1759295453222,3.8961,4153.4,4153.3,1.19849]
[1759295454719,3.6531,4153.4,4153.3,1.19849]
[1759295454920,3.8961,4153.4,4153.3,1.19849]
[1759295455626,4.66578,4153.4,4153.3,1.19849]
[1759295457826,4.66578,4153.4,4153.3,0.96919]
[1759295459320,4.66578,4153.4,4153.3,0.74369]
[1759295459524,4.2325,4153.4,4153.3,0.74369]
[1759295460027,4.2325,4153.4,4153.3,0.95069]
[1759295460829,4.66578,4153.4,4153.3,0.95069]
[1759295461333,4.66578,4153.4,4153.3,0.5174]
[1759295461628,4.66578,4153.4,4153.3,0.95069]
[1759295462626,3.9895,4153.4,4153.3,0.95069]
[1759295462828,4.2325,4153.4,4153.3,1.17649]
[1759295463930,4.66578,4153.4,4153.3,1.17649]
[1759295464125,4.2325,4153.4,4153.3,1.17649]
[1759295467432,3.4301,4153.4,4153.3,2.17882903]
[1759295467627,3.20975931,4153.9,4153.7,0.77795]
[1759295467931,0.00195931,4153.9,4153.8,3.9853]
[1759295468124,0.00195931,4153.9,4153.8,4.85013068]
[1759295468326,0.00195931,4153.9,4153.8,3.9853]
[1759295469329,0.2204,4154.7,4154.6,1.21065]
[1759295469824,0.4634,4154.7,4154.6,1.21065]
[1759295470230,0.46568633,4154.7,4154.6,1.21065]
[1759295472627,0.00228633,4154.7,4154.6,1.21065]
[1759295472928,0.24528633,4154.7,4154.6,1.21065]
[1759295474625,0.00228633,4154.7,4154.6,1.21065]
[1759295474933,0.78428633,4154.7,4154.6,1.21065]
[1759295475334,0.22268633,4154.7,4154.6,1.21065]
[1759295475632,0.00228633,4154.7,4154.6,1.21065]
[1759295494640,3.2078,4155.9,4155.8,0.4391]
[1759295494834,3.2078,4155.9,4155.8,2.31322286]
[1759295495033,3.2078,4156.4,4156.3,0.87208]
[1759295495236,3.648,4156.9,4156.8,0.2186]
[1759295495437,3.648,4156.9,4156.8,1.20462]
[1759295495637,3.20989625,4156.9,4156.8,1.20729405]
[1759295496046,0.00209625,4156.9,4156.8,1.20729405]
[1759295496240,0.00209625,4156.9,4156.8,2.07278691]
[1759295500242,0.00209625,4156.9,4156.8,2.31578691]
[1759295500639,0.00209625,4156.9,4156.8,1.45029405]
[1759295514752,3.2298,4157.9,4157.8,0.7437]
[1759295514953,4.012,4157.9,4157.8,1.39589286]
[1759295515157,4.012,4157.9,4157.8,1.60919286]
[1759295515355,0.3427,4157.7,4157.3,0.5563]
[1759295515563,0.7822,4157.5,4157.4,0.3133]
[1759295515870,0.7822,4157.3,4157.2,0.3133]
[1759295516156,0.3427,4157.1,4157.0,0.5304]
[1759295516359,0.7822,4157.1,4157.0,0.3133]
[1759295516554,0.7822,4157.1,4157.0,0.5304]
[1759295516757,0.7822,4157.1,4157.0,0.3133]
[1759295516961,0.4395,4156.9,4156.8,0.31597405]
[1759295517160,3.99,4156.9,4156.8,0.00267405]
[1759295517661,0.43293,4156.8,4156.2,3.2078]
[1759295517853,0.7822,4156.3,4156.2,3.2078]
[1759295518055,0.4395,4156.3,4156.1,0.43299]
[1759295518358,0.4395,4156.3,4155.7,4.07329286]
[1759295518359,0.2164,4156.4,4156.3,0.2133]
[1759295518566,0.7822,4156.4,4156.3,0.4304]
[1759295518753,0.7822,4156.4,4156.3,0.00252386]
[1759295518954,3.99,4156.4,4156.3,0.00252386]
[1759295519155,8.99,4156.4,4156.3,0.00252386]
[1759295519555,3.6473,4156.4,4156.3,0.74622386]
[1759295519756,0.2164,4156.9,4156.8,0.64622]
[1759295519956,0.2164,4156.9,4156.8,0.86332]
[1759295520250,0.243,4156.9,4156.8,0.7437]
[1759295520454,3.2078,4157.0,4156.9,0.74621]
[1759295520658,3.99,4157.0,4156.9,0.7437]
[1759295520959,3.6473,4157.0,4156.9,0.7437]
[1759295521157,0.4395,4157.0,4156.9,0.7437]
[1759295521457,0.4395,4157.3,4157.2,0.7437]
[1759295521863,0.21868433,4157.5,4157.4,0.4304]
[1759295522061,0.21868433,4157.5,4157.4,0.7437]
[1759295522270,0.00228433,4157.5,4157.4,0.7437]
[1759295525452,0.00228433,4157.5,4157.4,1.39051598]
[1759295525657,0.00228433,4157.5,4157.4,0.7437]
[1759295526464,0.00228433,4157.5,4157.4,1.38855152]
[1759295527460,0.00228433,4157.5,4157.4,6.38855152]
[1759295528064,0.00228433,4157.5,4157.4,5.7437]
[1759295528266,3.2078,4158.6,4158.5,1.30875]
[1759295528469,3.6473,4158.6,4158.5,1.30875]
[1759295528669,3.6473,4158.6,4158.5,0.876]
[1759295528967,3.4242,4158.6,4158.5,0.876]
[1759295529170,3.42643118,4158.6,4158.5,0.876]
[1759295529769,3.99223118,4158.6,4158.5,0.876]
[1759295529966,3.64953118,4158.6,4158.5,0.876]
[1759295530168,3.99223118,4158.6,4158.5,0.876]
[1759295530864,3.99223118,4158.6,4158.3,0.74606]
[1759295530865,0.3427,4158.5,4158.3,0.74606]
[1759295531062,0.7822,4158.4,4158.3,0.74606]
[1759295531466,0.7822,4158.4,4158.3,0.96316]
[1759295532270,0.7822,4158.4,4158.3,0.43276]
[1759295532469,0.7822,4158.4,4158.0,3.6534]
[1759295532470,0.3427,4158.3,4158.1,0.43279]
[1759295532771,0.7822,4158.2,4158.1,0.96319]
[1759295533361,0.7822,4158.2,4157.9,0.43281]
[1759295533565,0.7822,4158.0,4157.9,0.96321]
[1759295533769,0.7822,4158.0,4157.9,1.17651]
[1759295534764,0.7822,4158.0,4157.9,0.96321]
[1759295534964,0.7822,4158.0,4157.9,0.74611]
[1759295535265,0.3427,4158.2,4157.6,1.74346148]
[1759295535571,0.7822,4158.2,4158.1,0.96319]
[1759295535968,0.7822,4157.9,4157.8,0.5304]
[1759295536165,1.0252,4157.9,4157.8,0.96322]
[1759295536466,0.2164,4157.8,4157.7,0.95943]
[1759295536659,0.5591,4158.4,4158.3,0.2171]
[1759295536861,0.7822,4158.4,4158.3,0.5304]
[1759295537074,0.7822,4158.4,4158.3,1.17647]
[1759295537466,0.7822,4158.4,4158.3,0.3133]
[1759295537668,0.7822,4158.4,4157.5,3.98448895]
[1759295537669,0.7822,4158.2,4158.1,0.74609]
[1759295537962,0.7822,4158.2,4158.1,0.3133]
[1759295537963,1.0262,4158.2,4158.1,0.3133]
[1759295538166,1.0262,4158.2,4157.5,3.64065]
[1759295538167,0.4395,4157.7,4157.5,3.64065]
[1759295538366,3.5505,4158.0,4157.9,0.7437]
[1759295538678,3.6682,4158.0,4157.9,0.7437]
[1759295538870,3.4242,4158.0,4157.9,0.7437]
[1759295542962,3.4242,4158.0,4157.9,1.17651]
[1759295543170,3.989,4158.0,4157.9,1.17651]
[1759295543375,4.0743,4158.0,4157.9,0.43281]
[1759295543567,3.989,4158.0,4157.9,0.43281]
[1759295543876,3.6473,4158.0,4157.9,1.18551]
[1759295544073,0.4395,4158.0,4157.9,1.18551]
[1759295544875,0.1215,4158.5,4158.4,0.43276]
[1759295544876,0.3417,4158.5,4158.4,0.43276]
[1759295545176,0.6813,4158.5,4158.4,1.18546]
[1759295547273,0.4373,4158.5,4158.4,1.18546]
[1759295547478,0.6813,4158.5,4158.4,1.18546]
[1759295548580,0.244,4158.5,4158.4,1.18546]
[1759295548975,0.4557,4158.5,4158.4,1.18546]
[1759295549377,0.24623118,4158.6,4158.5,1.32175]
[1759295549882,0.45793118,4158.6,4158.5,1.32175]
[1759295550779,0.21393118,4158.6,4158.5,1.32175]
[1759295551085,0.45793118,4158.6,4158.5,1.32175]
[1759295555588,0.78123118,4158.6,4158.5,1.32175]
[1759295556086,0.43953118,4158.6,4158.5,1.32175]
[1759295557179,0.21393118,4158.6,4158.5,1.32175]
[1759295557382,0.68353118,4158.6,4158.5,1.32175]
[1759295558085,0.43953118,4158.6,4158.5,1.32175]
[1759295558284,0.68253118,4158.6,4158.5,1.32175]
[1759295560582,0.21393118,4158.6,4158.5,1.32175]
[1759295561883,0.45693118,4158.6,4158.5,1.32175]
[1759295562187,0.21393118,4158.6,4158.5,1.32175]
[1759295562389,0.45693118,4158.6,4158.5,1.32175]
[1759295562582,0.68253118,4158.6,4158.5,1.32175]
[1759295562788,1.02423118,4158.6,4158.5,1.32175]
[1759295563491,0.68253118,4158.6,4158.5,1.32175]
[1759295564695,1.02423118,4158.6,4158.5,1.32175]
[1759295565196,0.68253118,4158.6,4158.5,1.32175]
[1759295565897,0.43953118,4158.6,4158.5,1.32175]
[1759295566095,0.68253118,4158.6,4158.5,1.32175]
[1759295566696,1.45697118,4158.6,4158.5,1.18545]
[1759295566894,1.45697118,4158.6,4158.5,1.32175]
[1759295567195,1.02423118,4158.6,4158.5,1.32175]
[1759295567794,1.45697118,4158.6,4158.5,1.32175]
[1759295567995,1.02423118,4158.6,4158.5,1.32175]
[1759295568492,1.02423118,4158.6,4157.8,1.85894675]
[1759295568493,0.779,4157.4,4157.3,0.3252]
[1759295568686,0.779,4157.4,4157.3,0.7527]
[1759295568687,1.022,4157.4,4157.3,0.7527]
[1759295568883,0.2117,4157.4,4157.3,0.7527]
[1759295569093,0.4557,4157.4,4157.3,0.7527]
[1759295569798,1.023,4157.4,4157.3,0.3252]
[1759295570191,0.779,4157.4,4157.3,0.3252]
[1759295570393,1.023,4157.4,4157.3,0.5352]
[1759295570893,0.6813,4157.4,4157.3,0.7527]
[1759295571097,1.023,4157.4,4157.3,0.7527]
[1759295572500,0.779,4157.4,4157.3,0.7527]
[1759295572696,1.023,4157.4,4157.3,0.7527]
[1759295573200,1.023,4157.4,4157.3,0.3252]
[1759295573396,0.779,4157.4,4157.3,0.5485]
[1759295573596,0.6813,4157.4,4157.3,0.7676]
[1759295575698,1.0237,4157.4,4157.3,0.7676]
[1759295576799,0.7797,4157.4,4157.3,0.7676]
[1759295577004,1.0237,4157.4,4157.3,0.5485]
[1759295577698,3.4155,4157.8,4157.7,0.561]
[1759295577902,3.8682,4157.8,4157.7,1.21293]
[1759295578602,3.6242,4157.8,4157.7,1.21293]
[1759295578805,3.6595,4157.8,4157.7,1.21293]
[1759295580011,3.4155,4157.8,4157.7,1.21293]
[1759295580197,3.2078,4157.8,4157.7,1.21293]
[1759295581504,0.2077,4157.8,4157.7,1.21293]
[1759295583104,0.2077,4158.1,4158.0,1.1185]
[1759295583302,0.2077,4158.1,4158.0,1.3376]
[1759295583503,0.7588,4158.1,4158.0,1.3376]
[1759295584099,0.7588,4158.1,4158.0,0.3377]
[1759295584313,0.7588,4158.1,4158.0,0.9938]
[1759295584611,1.0018,4158.1,4158.0,1.1185]
[1759295584809,1.0018,4158.1,4158.0,1.3376]
[1759295586307,0.7588,4158.1,4158.0,1.3376]
[1759295586509,0.6604,4158.1,4158.0,1.3376]
[1759295586705,0.7588,4158.1,4158.0,1.2129]
[1759295586908,1.43559,4158.1,4158.0,0.3377]
[1759295587103,0.4164,4157.9,4157.6,0.3377]
[1759295587308,0.2077,4157.1,4157.0,1.65160728]
[1759295587512,0.2077,4157.1,4157.0,1.00761]
[1759295587916,0.2077,4157.1,4157.0,1.34531]
[1759295588112,0.2077,4157.4,4157.2,0.3377]
[1759295588317,0.1215,4158.5,4157.9,0.43281]
[1759295588318,0.3424,4158.0,4157.9,0.43281]
[1759295588505,0.4517,4158.0,4157.9,0.7801]
[1759295588817,0.4517,4158.0,4157.9,1.21291]
[1759295589525,0.6604,4158.0,4157.9,1.21291]
[1759295590011,1.0028,4158.0,4157.9,0.99381]
[1759295590613,0.7588,4158.0,4157.9,0.77051]
[1759295590803,1.0028,4158.0,4157.9,0.77051]
[1759295591003,1.0028,4158.0,4157.9,1.21291]
[1759295591209,3.5502,4158.2,4158.1,0.43279]
[1759295591414,4.64338,4158.2,4158.1,1.21289]
[1759295591613,4.64338,4158.2,4158.1,0.3377]
[1759295593016,4.64338,4158.2,4158.1,0.99379]
[1759295593516,4.64338,4158.2,4158.1,0.77049]
[1759295594112,4.39938,4158.2,4158.1,0.99379]
[1759295594319,4.39938,4158.2,4158.1,1.21289]
[1759295594320,5.07386719,4158.2,4158.1,1.21289]
[1759295594618,5.50664719,4158.2,4158.1,0.77049]
[1759295595312,5.50664719,4158.2,4158.1,0.3377]
[1759295595712,5.50664719,4158.2,4158.0,0.3377]
[1759295595713,0.8492,4158.1,4158.0,0.3377]
[1759295596310,1.2774,4158.0,4157.9,0.43281]
[1759295596510,0.7588,4157.8,4157.7,0.43283]
[1759295596711,0.84923,4157.7,4157.3,0.64399728]
[1759295596915,0.7588,4157.5,4157.4,0.561]
[1759295597622,0.7588,4157.5,4157.4,0.99387]
[1759295598320,1.19166,4157.5,4157.4,0.99387]
[1759295598820,1.19166,4157.5,4157.4,0.561]
[1759295599009,1.19166,4157.5,4157.4,0.43287]
[1759295599209,1.19166,4157.5,4157.4,0.77467]
[1759295599823,1.43466,4157.5,4157.4,0.77467]
[1759295600018,0.2131,4157.3,4157.2,0.43289]
[1759295600222,1.43608,4157.3,4157.2,0.5616]
[1759295600421,1.43608,4157.3,4157.0,1.20919728]
[1759295600422,1.1931,4157.1,4157.0,0.3418]
[1759295600618,2.30036719,4157.1,4157.0,0.99451]
[1759295601012,1.0032,4157.1,4157.0,1.35031]
[1759295601323,0.2131,4157.3,4157.2,1.21808]
[1759295601525,0.4561,4157.3,4157.2,1.21808]
[1759295603127,0.6632,4157.3,4157.2,1.21808]
[1759295603624,0.4202,4157.3,4157.2,1.21808]
[1759295603824,0.7385,4157.3,4157.2,1.21808]
[1759295604017,1.41438,4157.3,4157.2,1.21808]
[1759295604225,1.17138,4157.3,4157.2,0.5616]
[1759295604529,0.752,4156.9,4156.8,0.64123]
[1759295604726,0.995,4156.9,4156.8,0.64123]
[1759295604928,0.995,4156.9,4156.8,1.18763]
[1759295605527,1.42792,4156.9,4156.8,0.3211]
[1759295605726,0.75125,4156.6,4156.4,1.07696728]
[1759295605929,0.6767,4156.5,4156.4,0.7547]
[1759295606231,3.2078,4156.6,4156.5,0.5651]
[1759295606532,2.81113084,4157.9,4156.9,0.7547]
[1759295606533,0.2263,4157.0,4156.9,0.7547]
[1759295606731,0.4693,4157.0,4156.9,0.7547]
[1759295606931,0.6767,4157.0,4156.9,0.7547]
[1759295607133,0.995,4157.0,4156.9,0.7547]
[1759295609935,0.995,4157.0,4156.9,0.5294]
[1759295611136,0.995,4157.0,4156.8,0.43293]
[1759295611436,0.752,4156.6,4156.5,0.64126]
[1759295611632,0.995,4156.6,4156.5,0.99806]
[1759295611833,0.995,4156.6,4156.5,1.31916]
[1759295612045,0.995,4156.6,4156.3,0.00252386]
[1759295612338,0.752,4156.4,4156.3,0.32362386]
[1759295612534,0.995,4156.4,4156.3,0.00252386]
[1759295612930,0.995,4156.4,4156.3,0.53192386]
[1759295614037,0.995,4156.4,4156.3,0.00252386]
[1759295614638,1.85926719,4156.4,4156.3,0.00252386]
[1759295615037,0.752,4156.4,4156.3,0.00252386]
[1759295615241,0.752,4156.4,4156.3,0.53192386]
[1759295615440,0.995,4156.4,4156.3,0.53192386]
[1759295616142,0.995,4156.4,4156.3,0.00252386]
[1759295616934,5.995,4156.4,4156.3,0.00252386]
[1759295617243,0.4337,4155.7,4155.6,0.00893]
[1759295617439,1.42804,4155.7,4155.6,0.33003]
[1759295617837,1.42804,4155.7,4155.6,0.53833]
[1759295618142,0.995,4155.7,4155.6,0.76363]
[1759295618331,0.995,4155.7,4155.6,0.01094748]
[1759295618940,0.995,4155.7,4155.6,0.33204748]
[1759295619344,0.995,4155.7,4155.6,0.01094748]
[1759295619746,0.752,4155.7,4155.6,0.54034748]
[1759295620038,0.995,4155.7,4155.6,0.76564748]
[1759295620238,0.995,4155.7,4155.6,0.01094748]
[1759295623341,0.995,4155.7,4155.6,0.33204748]
[1759295623539,0.995,4155.7,4155.6,0.32311748]
[1759295623743,0.995,4155.7,4155.6,0.75671748]
[1759295623744,0.752,4155.7,4155.6,0.75671748]
[1759295624043,3.2078,4155.9,4155.8,0.4336]
[1759295624242,3.4508,4155.9,4155.8,0.7547]
[1759295624440,3.6771,4155.9,4155.8,0.7547]
[1759295624745,4.2028,4155.9,4155.8,0.7547]
[1759295625748,4.2028,4155.9,4155.8,0.5294]
[1759295626252,4.2028,4155.9,4155.8,0.7547]
[1759295626452,4.63582,4155.9,4155.8,0.7547]
[1759295627548,4.63582,4155.9,4155.8,0.5294]
[1759295627945,4.63582,4155.9,4155.8,0.3211]
[1759295628252,1.18504,4155.7,4155.6,0.00201748]
[1759295628546,1.42804,4155.7,4155.6,0.00201748]
[1759295632348,2.29230719,4155.7,4155.6,0.00201748]
[1759295633348,0.4331,4155.1,4155.0,0.4526]
[1759295633553,0.7603,4154.9,4154.8,0.76503]
[1759295633751,0.7603,4154.9,4154.2,4.29079]
[1759295633752,0.97276,4154.7,4154.6,0.3319]
[1759295633953,0.4295,4154.4,4154.3,0.98428]
[1759295634154,1.0033,4154.4,4154.3,1.19328]
[1759295634458,1.87053972,4154.4,4154.3,0.76226548]
[1759295635053,1.00627253,4154.4,4154.3,0.76226548]
[1759295635456,0.00297253,4154.4,4154.3,0.76226548]
[1759295635752,0.00297253,4154.4,4154.3,5.76226548]
[1759295637455,0.00297253,4154.4,4154.3,0.76226548]
[1759295637959,0.22367253,4154.4,4154.3,0.76226548]
[1759295638454,0.00297253,4154.4,4154.3,1.62653267]
[1759295639156,0.24597253,4154.4,4154.3,1.62653267]
[1759295639358,0.24597253,4154.4,4154.3,0.76226548]
[1759295639759,0.67547253,4154.4,4154.3,0.76226548]
[1759295640258,1.00627253,4154.4,4154.3,0.76226548]
[1759295640446,1.00627253,4154.4,4154.3,0.55326548]
[1759295640647,0.46667253,4154.4,4154.3,0.76226548]
[1759295640850,0.22367253,4154.4,4154.3,0.76226548]
[1759295641050,0.46667253,4154.4,4154.3,0.76226548]
[1759295641558,0.24597253,4154.4,4154.3,1.62653267]
[1759295642860,0.24597253,4154.4,4154.3,2.05972267]
[1759295649769,0.67547253,4154.4,4154.3,1.63152267]
[1759295650076,2.30371972,4154.4,4154.3,0.00216548]
[1759295654270,1.43945253,4154.4,4154.3,0.00216548]
[1759295654871,4.64725253,4154.4,4154.3,0.00216548]
[1759295656177,12.99648,4154.1,4151.9,2.14642868]
[1759295656478,0.43342,4152.1,4152.0,0.135]
[1759295656673,3.2078,4152.1,4152.0,0.5632]
[1759295656873,3.88621,4152.1,4152.0,0.5632]
[1759295657270,4.43320919,4152.1,4152.0,0.56611683]
[1759295657471,4.43320919,4152.1,4152.0,0.86783235]
[1759295658680,4.43320919,4152.1,4152.0,1.17883235]
[1759295658878,4.18820919,4152.1,4152.0,1.17883235]
[1759295659181,3.75479919,4152.1,4152.0,1.17883235]
[1759295659480,3.99979919,4152.1,4152.0,1.17883235]
[1759295663481,3.75479919,4152.1,4152.0,1.17883235]
[1759295663673,3.99979919,4152.1,4152.0,1.17883235]
[1759295663867,3.99979919,4152.1,4152.0,1.17803235]
[1759295669876,4.43320919,4152.1,4152.0,1.17803235]
[1759295670984,4.43320919,4152.1,4152.0,0.96903235]
[1759295671280,4.43320919,4152.1,4152.0,0.44891683]
[1759295675684,0.43347,4151.6,4151.5,0.135]
[1759295675990,5.43527631,4151.6,4151.5,0.56848]
[1759295676180,3.99979919,4151.6,4151.5,1.29099552]
[1759295676382,3.99979919,4151.6,4151.5,0.56848]
[1759295676577,3.99979919,4151.6,4151.5,0.77818]
[1759295676783,3.99979919,4151.6,4151.5,0.991292]
[1759295677789,3.99979919,4151.6,4151.5,1.332392]
[1759295680190,4.43326919,4151.6,4151.5,1.332392]
[1759295680988,3.75479919,4151.6,4151.5,1.63410752]
[1759295681382,0.54699919,4151.6,4151.5,1.63410752]
[1759295681586,4.93687084,4152.2,4152.1,1.19531]
[1759295681889,5.7581161,4152.2,4152.1,1.19531]
[1759295682084,4.46244526,4152.2,4152.1,1.19531]
[1759295682392,6.18756029,4152.2,4152.1,1.19531]
[1759295683091,4.46244526,4152.2,4152.1,1.19531]
[1759295683293,6.18869837,4152.2,4152.1,1.19531]
[1759295683688,6.18869837,4152.2,4152.1,0.7619]
[1759295683891,6.18869837,4152.2,4152.1,0.3411]
[1759295684090,4.46244526,4152.2,4152.1,0.3411]
[1759295684389,0.43341,4152.1,4152.0,0.57152]
[1759295684587,1.58955526,4152.1,4152.0,0.1381]
[1759295685191,0.43345,4151.8,4151.5,0.137012]
[1759295685383,4.88590526,4151.7,4151.6,0.94488552]
[1759295685684,4.24444526,4151.7,4151.6,0.85427]
[1759295686397,5.97766689,4151.7,4151.6,0.85427]
[1759295686598,5.97766689,4151.7,4151.6,1.19537]
[1759295686899,6.18566689,4151.7,4151.6,1.19537]
[1759295687194,5.97766689,4151.7,4151.6,1.19537]
[1759295687396,2.55446689,4151.7,4151.6,1.19537]
[1759295687595,0.82124526,4151.7,4151.6,1.19537]
[1759295688201,0.57624526,4151.7,4151.6,1.19537]
[1759295688498,0.82124526,4151.7,4151.6,1.19537]
[1759295690401,1.03664526,4151.7,4151.6,1.19537]
[1759295690995,4.45244526,4151.7,4151.6,1.19537]
[1759295691501,1.24464526,4151.7,4151.6,1.19537]
[1759295693505,1.40114526,4151.7,4151.6,0.77457]
[1759295693706,1.40114526,4151.7,4151.6,0.99447]
[1759295693900,1.24464526,4151.7,4151.6,0.99447]
[1759295694397,1.24464526,4151.7,4151.6,1.22137]
[1759295695294,1.40114526,4151.7,4151.6,0.99447]
[1759295695606,1.24464526,4151.7,4151.6,0.99447]
[1759295696803,4.45244526,4151.7,4151.6,0.99447]
[1759295697103,4.45244526,4151.7,4151.6,1.22137]
[1759295697504,0.82024526,4151.7,4151.6,1.22137]
[1759295697907,1.04774526,4151.7,4151.6,1.22137]
[1759295698096,1.26734526,4151.7,4151.6,1.22137]
[1759295698407,1.42384526,4151.7,4151.6,0.99447]
[1759295698608,1.26734526,4151.7,4151.6,0.99447]
[1759295699207,1.42384526,4151.7,4151.6,0.99447]
[1759295700202,1.26734526,4151.7,4151.6,0.99447]
[1759295700608,1.26734526,4151.7,4151.6,1.22137]
[1759295703112,1.70080526,4151.7,4151.6,1.22137]
[1759295703313,1.02334526,4151.7,4151.6,1.22137]
[1759295703613,1.26734526,4151.7,4151.6,1.22137]
[1759295703810,0.43347,4151.6,4151.5,0.002012]
[1759295704015,1.61331526,4151.6,4151.5,0.002012]
[1759295704211,8.34653689,4151.6,4151.5,0.002012]
[1759295705116,6.17984526,4151.6,4151.5,0.002012]
[1759295705311,7.99871246,4151.6,4151.5,0.699912]
[1759295705508,1.26734526,4151.6,4151.5,1.66200752]
[1759295707318,0.82024526,4151.6,4151.5,1.66200752]
[1759295708616,1.70081526,4151.6,4151.5,1.22852752]
[1759295709023,1.70081526,4151.6,4151.5,1.66200752]
[1759295709718,1.45681526,4151.6,4151.5,1.22852752]
[1759295710016,1.70081526,4151.6,4151.5,1.00162752]
[1759295710213,1.85731526,4151.6,4151.5,1.43510752]
[1759295710414,1.61331526,4151.6,4151.5,0.345312]
[1759295710614,1.85731526,4151.6,4151.5,0.002012]
[1759295711314,1.61331526,4151.6,4151.5,0.778792]
[1759295711519,1.85731526,4151.6,4151.5,1.133392]
[1759295712622,1.85731526,4151.6,4151.5,0.699912]
[1759295713323,6.85731526,4151.6,4151.5,0.002012]
[1759295716425,7.72451673,4151.6,4151.5,0.002012]
[1759295717019,2.48051673,4151.6,4151.5,0.778792]
[1759295717225,2.72451673,4151.6,4151.5,1.133392]
[1759295717823,2.48051673,4151.6,4151.5,1.133392]
[1759295718025,2.04704673,4151.6,4151.5,1.133392]
[1759295718323,2.56801673,4151.6,4151.5,1.133392]
[1759295719320,2.32401673,4151.6,4151.5,1.133392]
[1759295719517,0.57624526,4151.6,4151.5,1.66200752]